bitfinex/quotes_ETHUSD_20220119
["timestamp","ask_amount","ask_price","bid_price","bid_amount"]
[1642595651372,0.00625266,3130.8,3130.7,14.95258759]
[1642595651574,3.9865,3132.1,3131.0,3.1936754]
[1642595651773,3.9865,3132.1,3131.2,1.59684]
[1642595651974,0.00625266,3131.9,3131.3,1.59683]
[1642595652174,0.00625266,3131.9,3131.4,2.23567563]
[1642595652377,0.00568424,3131.8,3131.4,2.23567563]
[1642595652776,0.00511581,3131.7,3131.4,2.23567563]
[1642595652975,0.00511581,3131.7,3131.4,3.03409563]
[1642595653176,0.00454739,3131.6,3131.4,3.03409563]
[1642595653427,0.00454739,3131.6,3131.4,4.63091403]
[1642595653624,0.00397897,3131.5,3131.4,3.03409563]
[1642595653925,0.0096632,3131.5,3131.4,2.23567563]
[1642595654723,0.0096632,3131.5,3131.4,3.83265813]
[1642595655123,0.0096632,3131.5,3131.4,5.13265813]
[1642595655723,0.0096632,3131.5,3131.4,11.61637899]
[1642595655928,0.0096632,3131.5,3131.4,11.77649899]
[1642595656127,1.1527,3132.6,3131.8,0.79826]
[1642595656526,1.1527,3132.6,3131.8,0.3]
[1642595656724,1.1527,3132.6,3131.8,0.6]
[1642595656925,1.1527,3132.6,3131.8,1.3373]
[1642595657190,1.1527,3132.6,3132.3,1.42934674]
[1642595657390,3.25558504,3133.4,3132.5,0.7982644]
[1642595657590,3.25558504,3133.4,3132.4,0.79824]
[1642595657789,0.00284212,3133.0,3132.4,0.79824]
[1642595658188,0.00227369,3132.9,3132.4,3.1762017]
[1642595658592,0.00170527,3132.8,3132.4,3.1762017]
[1642595658788,0.00170527,3132.8,3132.4,3.9744217]
[1642595658989,0.00113685,3132.7,3132.4,3.9744217]
[1642595659289,9.33516971,3133.6,3132.5,3.30068425]
[1642595659290,3.25558504,3133.4,3132.5,3.30068425]
[1642595659492,0.00568423,3133.5,3132.5,2.50243355]
[1642595659692,0.00454739,3133.3,3132.3,2.66321614]
[1642595659889,0.00511581,3133.4,3132.6,0.2531]
[1642595660090,0.00397896,3133.2,3132.6,0.2531]
[1642595660303,0.00454739,3133.3,3132.6,0.2531]
[1642595660492,2.26151629,3133.5,3132.6,0.2531]
[1642595660493,0.00341054,3133.1,3132.6,0.2531]
[1642595660689,0.00397896,3133.2,3132.8,0.7981488]
[1642595660923,0.00511581,3133.4,3132.8,0.7981488]
[1642595661127,0.00341054,3133.1,3132.8,0.7981488]
[1642595661323,0.00454739,3133.3,3132.8,0.7981488]
[1642595661524,0.00568423,3133.5,3132.6,0.2531]
[1642595661725,0.00397896,3133.2,3132.8,1.5963186]
[1642595661924,0.00511581,3133.4,3132.8,1.5963186]
[1642595662123,0.00341054,3133.1,3132.8,1.5963186]
[1642595662328,0.00454739,3133.3,3132.8,1.5963186]
[1642595662529,0.00511581,3133.4,3132.8,2.3944659]
[1642595662728,0.00397896,3133.2,3132.8,2.3944659]
[1642595662930,0.00454739,3133.3,3132.9,0.2531]
[1642595663129,1.1407,3133.6,3132.9,0.2531]
[1642595663130,0.00341054,3133.1,3132.9,0.2531]
[1642595663329,0.00397896,3133.2,3132.9,0.2531]
[1642595663528,0.79842,3133.4,3132.9,0.22779001]
[1642595663732,0.80181054,3133.1,3132.9,0.22779001]
[1642595663928,0.7984,3133.1,3132.9,0.22779001]
[1642595664130,0.00454739,3133.3,3132.9,0.22779001]
[1642595664694,0.00397896,3133.2,3132.9,0.22779001]
[1642595665083,0.00341054,3133.1,3132.9,0.22779001]
[1642595665483,0.79834,3133.4,3132.9,0.22779001]
[1642595665683,0.79834,3133.3,3132.9,0.22779001]
[1642595665884,0.80288739,3133.3,3132.9,0.22779001]
[1642595666084,0.00397896,3133.2,3132.4,0.22779001]
[1642595666483,0.00341054,3133.1,3132.4,0.22779001]
[1642595666885,0.00397896,3133.2,3132.4,0.22779001]
[1642595667288,0.00341054,3133.1,3132.4,0.22779001]
[1642595667689,0.7984,3133.1,3132.4,0.22779001]
[1642595668532,1.0984,3133.1,3132.4,0.22779001]
[1642595668733,0.79855,3132.9,3132.4,0.22779001]
[1642595668935,0.461,3132.8,3132.4,0.22779001]
[1642595669231,0.00113685,3132.7,3132.1,0.22779001]
[1642595669431,0.461,3132.6,3132.1,0.22779001]
[1642595669630,0.461,3132.6,3132.2,0.00170527]
[1642595671831,0.461,3132.6,3132.2,0.30170527]
[1642595672032,0.00113685,3132.7,3132.2,0.30170527]
[1642595672281,0.00113685,3132.7,3132.3,2.59751164]
[1642595672679,0.00113685,3132.7,3132.3,0.22892686]
[1642595672879,0.00113685,3132.7,3132.3,1.02724966]
[1642595677228,0.54952685,3133.1,3132.3,1.02724966]
[1642595677628,0.00170527,3133.0,3132.4,0.00170527]
[1642595678033,0.00113684,3132.9,3132.4,0.00170527]
[1642595678830,0.00113684,3132.9,3132.5,0.22779001]
[1642595680175,0.79957684,3132.9,3132.5,0.22779001]
[1642595680373,3.09970811,3132.8,3132.5,0.22779001]
[1642595680576,0.461,3132.7,3132.5,0.22779001]
[1642595680775,6.011,3132.6,3132.5,0.22779001]
[1642595680974,8.18542,3132.6,3132.5,0.22779001]
[1642595681175,8.18542,3132.6,3132.5,0.22892686]
[1642595682379,10.93168115,3132.6,3132.5,0.22892686]
[1642595682980,8.18542,3132.6,3132.5,0.22892686]
[1642595683184,6.011,3132.6,3132.5,0.22892686]
[1642595683823,5.761,3132.6,3132.5,0.22892686]
[1642595684026,0.79858,3132.4,3131.5,3.2559]
[1642595684334,3.66309773,3132.3,3131.6,0.00511581]
[1642595684526,1.91268438,3131.9,3131.6,0.00511581]
[1642595684724,4.81819773,3132.3,3131.1,0.00795793]
[1642595684725,0.461,3132.1,3131.1,0.00795793]
[1642595685124,1.35241444,3132.0,3131.0,0.00852635]
[1642595685329,0.79881,3131.9,3131.0,0.00852635]
[1642595685531,0.79881,3131.9,3130.7,11.9957]
[1642595685532,1.59756,3131.9,3130.8,0.808405]
[1642595685727,2.72716,3131.9,3130.8,0.808405]
[1642595685927,2.72716,3131.9,3130.9,0.00909478]
[1642595686327,1.1296,3131.9,3130.9,0.00909478]
[1642595686528,1.1296,3131.9,3131.1,0.7986669]
[1642595686932,1.1296,3131.9,3131.2,0.0073895]
[1642595687581,1.1296,3131.9,3131.0,0.00852635]
[1642595688181,1.1296,3131.9,3131.1,2.71688509]
[1642595688482,1.1296,3131.9,3131.0,0.00852635]
[1642595688681,1.1296,3131.9,3131.3,0.7986338]
[1642595689081,1.1296,3131.9,3131.4,0.00625266]
[1642595689884,1.1296,3131.9,3131.1,0.7986757]
[1642595690082,1.1296,3131.9,3131.0,0.00852635]
[1642595690282,1.1296,3131.9,3131.2,0.0073895]
[1642595690481,1.1296,3131.9,3131.0,0.00852635]
[1642595691223,0.79873,3131.8,3131.0,0.00852635]
[1642595692231,2.94061222,3131.7,3131.0,0.00852635]
[1642595692434,0.79888,3131.5,3131.0,0.00852635]
[1642595692631,1.34241894,3131.4,3130.8,0.0096632]
[1642595692831,1.34241894,3131.4,3130.2,0.01307374]
[1642595692832,1.26,3131.4,3130.2,0.01307374]
[1642595693034,2.26,3131.4,3130.3,2.71763918]
[1642595693332,2.1870788,3131.3,3130.4,0.01193689]
[1642595693634,0.79899,3131.1,3130.4,0.01193689]
[1642595693832,0.461,3131.0,3130.4,0.01193689]
[1642595694229,0.461,3131.0,3130.2,0.01307374]
[1642595694434,0.461,3131.0,3130.3,2.71762242]
[1642595694980,0.461,3131.0,3130.4,0.01193689]
[1642595695380,0.461,3131.0,3130.2,0.01307374]
[1642595695679,0.79896,3130.9,3130.3,2.71752383]
[1642595695881,0.79896,3130.9,3130.2,0.01307374]
[1642595696082,0.79896,3130.9,3130.4,0.01193689]
[1642595696284,3.54020359,3130.9,3130.2,0.01307374]
[1642595696483,4.77150359,3130.9,3130.2,0.01307374]
[1642595696682,4.77150359,3130.9,3129.8,0.01534743]
[1642595696883,0.79906,3130.6,3129.9,2.71785595]
[1642595697084,1.26006,3130.6,3129.9,2.71785595]
[1642595697291,1.26006,3130.6,3130.0,0.01421059]
[1642595697887,1.26006,3130.6,3129.8,0.01534743]
[1642595698531,0.461,3130.6,3129.8,0.01534743]
[1642595698731,0.461,3130.6,3129.9,2.71778468]
[1642595698930,0.461,3130.6,3129.9,3.51676438]
[1642595699129,0.461,3130.6,3130.0,0.01421059]
[1642595700332,2.6275817,3130.5,3130.0,0.01421059]
[1642595700539,1.26021,3130.4,3130.0,0.01421059]
[1642595700733,7.011,3130.3,3129.1,5.169]
[1642595700932,7.01270527,3130.3,3129.2,2.72284242]
[1642595701229,7.01270527,3130.3,3129.1,5.169]
[1642595701230,1.00113685,3130.2,3129.3,0.00397896]
[1642595701434,0.461,3130.1,3129.3,0.00397896]
[1642595701629,1.26026,3130.1,3129.3,0.00397896]
[1642595702486,2.0595,3130.1,3129.3,0.00397896]
[1642595702683,0.79925,3129.9,3129.3,0.00397896]
[1642595702884,0.461,3129.8,3128.9,0.00625265]
[1642595703084,3.20855291,3129.8,3129.0,2.71841111]
[1642595703282,0.461,3129.8,3129.0,2.71841111]
[1642595703482,3.23101225,3129.8,3129.1,0.00511581]
[1642595703682,0.461,3129.8,3129.1,0.00511581]
[1642595703882,0.461,3129.8,3128.7,15.6186]
[1642595703883,0.461,3129.8,3128.8,0.00682108]
[1642595704084,0.461,3129.8,3128.9,2.71848523]
[1642595704481,0.461,3129.8,3129.0,0.00568423]
[1642595704684,0.79927,3129.7,3129.0,0.00568423]
[1642595705086,0.79927,3129.7,3128.8,0.00682108]
[1642595705484,0.79927,3129.7,3128.8,2.63440278]
[1642595705682,0.79927,3129.7,3128.8,3.43365128]
[1642595705942,1.6376,3129.8,3128.9,2.72473252]
[1642595706126,1.6376,3129.8,3129.0,2.6275817]
[1642595706331,0.46213685,3130.2,3129.1,1.0]
[1642595706531,0.00113685,3130.2,3129.3,0.01272746]
[1642595706731,0.00113685,3130.2,3129.4,2.71790637]
[1642595706929,0.00113685,3130.2,3129.4,2.72131691]
[1642595707133,0.00113685,3130.2,3129.5,0.00284211]
[1642595707532,0.00113685,3130.2,3129.5,0.80183211]
[1642595707737,0.00113685,3130.2,3129.5,0.00284211]
[1642595707931,0.00113685,3130.2,3129.6,0.00227369]
[1642595708132,0.00113685,3130.2,3129.5,2.68240837]
[1642595708334,0.00113685,3130.2,3129.5,2.38525048]
[1642595708532,0.00113685,3130.2,3129.6,0.00227369]
[1642595709132,0.00113685,3130.2,3129.5,0.00284211]
[1642595709332,0.00113685,3130.2,3129.6,0.00227369]
[1642595709533,0.00113685,3130.2,3129.5,0.00284211]
[1642595710177,0.79917,3130.1,3129.5,0.00284211]
[1642595710578,0.79917,3130.1,3129.4,0.00341054]
[1642595710983,2.10707028,3129.8,3129.4,0.00341054]
[1642595711181,6.05,3129.5,3129.4,0.00341054]
[1642595711382,6.511,3129.5,3129.0,0.00568423]
[1642595711780,6.511,3129.5,3128.8,0.00682108]
[1642595712179,7.31032,3129.5,3128.8,0.00682108]
[1642595712580,1.26032,3129.5,3128.8,0.00682108]
[1642595712986,0.461,3129.5,3128.8,0.00682108]
[1642595713723,0.461,3129.5,3128.6,0.00795792]
[1642595714224,0.461,3129.5,3128.6,1.8984806]
[1642595714524,0.461,3129.5,3128.7,0.3073895]
[1642595714730,0.461,3129.5,3128.7,0.0073895]
[1642595714929,0.79945,3129.3,3128.8,0.00682108]
[1642595715129,0.79945,3129.3,3128.4,3.269]
[1642595715130,0.79947,3129.1,3128.5,0.00852635]
[1642595715328,0.78244279,3129.1,3128.5,0.00852635]
[1642595716129,2.75289935,3129.0,3128.5,0.00852635]
[1642595716334,0.79955,3128.9,3128.4,0.00909477]
[1642595716531,2.97748833,3128.8,3128.2,0.01023162]
[1642595716731,2.97748833,3128.8,3127.8,1.5989687]
[1642595716732,0.461,3128.7,3127.8,1.61147401]
[1642595716930,0.461,3128.7,3127.9,0.01193689]
[1642595716931,2.80173537,3128.6,3127.9,0.01193689]
[1642595717175,1.0,3129.1,3127.9,0.01193689]
[1642595717176,0.461,3128.5,3127.9,0.01193689]
[1642595717377,0.461,3128.5,3127.8,0.01250531]
[1642595718185,0.461,3128.5,3127.7,0.01307374]
[1642595718683,3.58998752,3128.4,3127.7,0.01307374]
[1642595718982,3.58998752,3128.4,3127.5,0.01421058]
[1642595718983,0.461,3128.3,3127.5,0.01421058]
[1642595719182,3.94291975,3128.2,3127.5,0.01421058]
[1642595719382,0.461,3128.1,3127.2,0.01591585]
[1642595719584,0.461,3128.1,3127.1,1.14491489]
[1642595719585,2.74522056,3128.0,3127.1,1.14491489]
[1642595719781,2.74522056,3128.0,3127.2,2.71963889]
[1642595719782,0.79978,3127.8,3127.2,2.71963889]
[1642595719982,0.79978,3127.8,3127.2,5.18491585]
[1642595720180,0.79978,3127.8,3127.3,0.01534743]
[1642595720789,0.461,3127.7,3127.3,0.01534743]
[1642595721225,0.461,3127.7,3127.1,0.01648428]
[1642595722530,0.461,3127.7,3127.1,0.81623608]
[1642595722834,0.461,3127.7,3127.2,2.73552174]
[1642595723031,0.461,3127.7,3127.2,0.31591585]
[1642595723232,0.461,3127.7,3127.3,2.73491529]
[1642595723435,0.461,3127.7,3127.3,0.01534743]
[1642595723632,0.461,3127.7,3127.4,0.01477901]
[1642595723831,0.461,3127.7,3127.3,0.01534743]
[1642595724031,0.461,3127.7,3127.1,0.01648428]
[1642595724333,0.461,3127.7,3127.3,0.7996118]
[1642595724532,0.461,3127.7,3127.2,1.5992235]
[1642595724773,0.461,3127.7,3127.4,0.01477901]
[1642595724978,0.461,3127.7,3127.3,0.01534743]
[1642595725175,0.461,3127.7,3127.4,0.01477901]
[1642595725377,0.461,3127.7,3127.3,0.01534743]
[1642595727181,0.461,3127.7,3127.4,2.71947313]
[1642595727580,1.5925,3128.2,3127.5,0.01421058]
[1642595728181,1.5925,3128.2,3127.4,0.01477901]
[1642595728635,1.5925,3128.2,3127.3,0.01534743]
[1642595728831,0.7997,3128.1,3127.3,0.01534743]
[1642595729033,0.461,3128.0,3127.3,0.01534743]
[1642595729233,2.74632081,3127.9,3127.2,0.01591585]
[1642595729433,0.461,3127.9,3127.3,0.01534743]
[1642595729632,0.461,3127.9,3127.1,0.01648428]
[1642595729833,0.461,3127.9,3127.2,2.71969321]
[1642595730335,0.461,3127.9,3127.3,0.01534743]
[1642595730732,1.26075,3127.9,3127.3,0.01534743]
[1642595730934,1.26075,3127.9,3127.2,0.799709]
[1642595731137,1.26075,3127.9,3127.3,0.01534743]
[1642595731333,1.26075,3127.9,3127.3,2.73504472]
[1642595731535,1.26075,3127.9,3127.3,0.01534743]
[1642595731734,1.26075,3127.9,3127.4,0.01477901]
[1642595731935,1.26075,3127.9,3127.3,0.01534743]
[1642595732183,0.461,3127.9,3127.3,0.01534743]
[1642595732483,0.461,3127.9,3127.4,2.71964352]
[1642595732684,0.461,3127.9,3127.3,0.01534743]
[1642595732884,0.461,3127.9,3127.5,0.01421058]
[1642595733088,0.461,3127.9,3127.2,0.01591585]
[1642595733788,0.461,3127.9,3127.3,2.71965858]
[1642595734186,1.26074,3127.9,3127.4,0.01477901]
[1642595734385,0.461,3127.9,3127.5,2.71965858]
[1642595734789,0.461,3127.9,3127.6,0.01364216]
[1642595735391,1.26074,3127.9,3127.2,0.01591585]
[1642595735795,1.26074,3127.9,3127.3,2.71967352]
[1642595736255,0.461,3127.9,3127.4,0.81444221]
[1642595736464,1.0,3128.5,3127.4,0.81444221]
[1642595736465,0.461,3128.7,3127.5,2.71967352]
[1642595736660,0.461,3128.7,3127.5,2.7338841]
[1642595736859,0.461,3128.7,3127.6,2.73331568]
[1642595737058,0.461,3128.7,3127.6,3.03331568]
[1642595737260,0.461,3128.7,3127.7,3.84645596]
[1642595737460,0.461,3128.7,3127.9,0.7995668]
[1642595737659,0.79956,3128.6,3127.9,0.7995668]
[1642595737858,0.79956,3128.6,3128.0,0.01136847]
[1642595739879,0.79956,3128.6,3127.8,0.01250531]
[1642595740884,0.79956,3128.6,3127.9,2.71941165]
[1642595741283,0.79956,3128.6,3128.0,0.01136847]
[1642595741791,1.26063,3128.7,3127.8,0.01250531]
[1642595741792,0.79969,3128.4,3127.8,0.01250531]
[1642595741984,0.461,3128.3,3127.8,0.01250531]
[1642595742198,0.461,3128.3,3127.6,0.31364216]
[1642595742384,0.461,3128.3,3127.7,2.73255392]
[1642595742585,0.461,3128.3,3127.8,2.71948018]
[1642595742786,0.79969,3128.2,3127.8,3.03198549]
[1642595742986,0.79969,3128.2,3127.9,0.01193689]
[1642595743189,0.79969,3128.2,3127.4,0.81198458]
[1642595743427,0.00113685,3128.1,3127.5,2.71958151]
[1642595743628,0.00113685,3128.1,3127.5,2.7218552]
[1642595743832,0.79972,3128.0,3127.5,0.00227369]
[1642595744234,0.79972,3128.0,3127.4,0.30284212]
[1642595744440,0.79972,3128.0,3127.5,2.71958151]
[1642595744634,0.79972,3128.0,3127.4,0.00284212]
[1642595744635,0.79972,3128.0,3127.6,2.71958151]
[1642595744837,0.79972,3128.0,3127.6,0.00170527]
[1642595745034,0.79972,3128.0,3127.7,0.00113685]
[1642595745235,0.79972,3128.0,3127.4,2.72250982]
[1642595745435,1.59951,3128.0,3127.4,2.72250982]
[1642595745634,0.79978,3127.8,3127.4,2.72250982]
[1642595746536,0.461,3127.9,3127.4,2.72250982]
[1642595748011,0.461,3127.9,3127.5,2.7196677]
[1642595748213,0.461,3127.9,3127.4,0.00284212]
[1642595748214,0.461,3127.9,3127.6,2.7196677]
[1642595748412,0.461,3127.9,3127.6,2.72137297]
[1642595748611,0.461,3127.9,3127.7,2.72080455]
[1642595748811,0.461,3127.9,3127.7,0.00113685]
[1642595749211,0.461,3127.9,3127.3,2.7231734]
[1642595749413,0.461,3127.9,3127.4,0.00284212]
[1642595750111,0.461,3127.9,3127.4,0.80253032]
[1642595750316,0.461,3127.9,3127.5,2.71976286]
[1642595750714,0.461,3127.9,3127.6,2.72146813]
[1642595750928,0.461,3127.9,3127.6,0.00170527]
[1642595751129,0.461,3127.9,3127.7,0.00113685]
[1642595751130,2.06046,3127.9,3127.7,0.00113685]
[1642595751330,2.06046,3127.9,3127.1,5.97796593]
[1642595751331,0.461,3127.9,3127.2,2.71979201]
[1642595751529,0.461,3127.9,3127.2,2.72377097]
[1642595751731,0.461,3127.9,3127.3,2.72320255]
[1642595751933,0.461,3127.9,3127.4,2.71979201]
[1642595752138,0.461,3127.9,3127.4,0.00284212]
[1642595752534,2.06044,3127.9,3127.4,2.71979201]
[1642595752734,2.06044,3127.9,3127.5,2.71979201]
[1642595753032,2.06044,3127.9,3127.6,2.72149728]
[1642595753231,2.06044,3127.9,3127.6,0.00170527]
[1642595753433,2.06044,3127.9,3127.7,0.00113685]
[1642595753636,2.06044,3127.9,3127.2,2.72373457]
[1642595753836,2.06044,3127.9,3127.3,0.00341054]
[1642595754683,0.79977,3127.8,3127.3,2.72316615]
[1642595754879,0.79977,3127.7,3127.4,2.71975561]
[1642595755084,0.79977,3127.7,3127.5,2.71975561]
[1642595755282,0.79977,3127.7,3127.6,2.71975561]
[1642595755484,0.79977,3127.7,3127.6,0.00170527]
[1642595755884,0.79977,3127.7,3127.2,0.00397896]
[1642595756185,0.79977,3127.7,3127.3,2.71975561]
[1642595756583,0.79977,3127.7,3127.4,0.00284212]
[1642595757189,0.79977,3127.7,3127.2,0.00397896]
[1642595757383,0.79977,3127.7,3127.3,2.71975561]
[1642595757784,0.79977,3127.7,3127.4,0.00284212]
[1642595758432,0.79977,3127.7,3127.2,0.00397896]
[1642595758630,0.79977,3127.7,3127.3,2.71975561]
[1642595758835,0.7998,3127.6,3127.3,2.71975561]
[1642595759033,0.79972,3127.9,3127.4,0.00284212]
[1642595759333,4.04972,3127.9,3127.0,10.0]
[1642595759536,0.0022737,3127.8,3127.0,10.0]
[1642595759738,0.0022737,3127.8,3127.1,0.00170527]
[1642595760033,0.00170527,3127.7,3127.1,0.00170527]
[1642595760236,0.7998,3127.6,3127.1,0.00170527]
[1642595760433,0.80093685,3127.6,3127.1,0.00170527]
[1642595761635,0.00113685,3127.6,3127.1,0.80145347]
[1642595762175,0.00113685,3127.6,3127.2,0.00113684]
[1642595762779,0.00113685,3127.6,3127.2,1.60052994]
[1642595763781,0.00113685,3127.6,3127.2,1.90052994]
[1642595764781,0.00113685,3127.6,3127.2,1.60052994]
[1642595765784,0.00113685,3127.6,3127.2,0.00113684]
[1642595766063,4.18843356,3127.6,3127.2,0.00113684]
[1642595766260,0.461,3127.5,3127.2,0.00113684]
[1642595766462,2.99303941,3127.4,3127.2,0.00113684]
[1642595766661,8.011,3127.3,3127.2,0.00113684]
[1642595766863,9.19690677,3127.3,3127.2,0.00113684]
[1642595767061,9.99689677,3127.3,3127.2,0.00113684]
[1642595767262,12.70405211,3127.3,3127.2,0.00113684]
[1642595767862,1.26099,3127.3,3127.2,0.00113684]
[1642595768463,5.86099,3127.3,3127.2,0.00113684]
[1642595768763,8.60427178,3127.3,3127.2,0.00113684]
[1642595768963,9.90427178,3127.3,3127.2,0.00113684]
[1642595770786,7.16099,3127.3,3127.2,0.00113684]
[1642595771785,9.84080738,3127.3,3127.2,0.00113684]
[1642595771985,9.89684658,3127.3,3127.2,0.00113684]
[1642595772303,9.84825926,3127.3,3127.2,0.00113684]
[1642595772485,7.16099,3127.3,3127.2,0.00113684]
[1642595772689,11.71839299,3127.3,3127.2,0.00113684]
[1642595774235,7.16099,3127.3,3127.2,0.00113684]
[1642595775241,9.4530998,3127.3,3127.2,0.00113684]
[1642595776939,12.15555563,3127.3,3127.2,0.00113684]
[1642595777192,9.4530998,3127.3,3127.2,0.00113684]
[1642595777383,12.14378654,3127.3,3127.2,0.00113684]
[1642595777584,7.16099,3127.3,3127.2,0.00113684]
[1642595778386,11.84711986,3127.3,3127.2,0.00113684]
[1642595778786,30.55711986,3127.3,3127.2,0.00113684]
[1642595778986,7.35015,3127.2,3127.0,10.0]
[1642595779185,3.43235791,3127.1,3127.0,10.0]
[1642595779386,5.5098705,3127.1,3127.0,10.0]
[1642595779586,11.0098705,3127.1,3127.0,3.60001685]
[1642595779986,6.5098705,3127.1,3127.0,3.60001685]
[1642595780186,4.33665791,3127.1,3127.0,3.60001685]
[1642595780390,4.411,3127.1,3127.0,3.60001685]
[1642595780686,7.13396683,3127.1,3127.0,3.60001685]
[1642595782635,0.461,3127.1,3127.0,3.60001685]
[1642595782838,0.80014,3127.3,3127.0,3.60001685]
[1642595783335,0.461,3127.2,3127.0,3.60001685]
[1642595783535,6.77755088,3127.1,3127.0,3.60001685]
[1642595783738,6.77755088,3127.1,3126.0,10.0]
[1642595783739,1.31441518,3126.8,3126.0,10.0]
[1642595783942,0.80015,3126.6,3126.0,10.0]
[1642595784241,0.461,3126.5,3126.1,0.00511581]
[1642595785097,0.80022,3126.3,3126.1,0.00511581]
[1642595785297,3.55022,3126.2,3126.1,0.00511581]
[1642595787699,6.55,3126.1,3124.6,0.1344]
[1642595787902,0.80036,3125.7,3124.6,0.1248]
[1642595788101,0.80036,3125.7,3124.7,0.00795793]
[1642595788102,5.758,3125.5,3124.7,0.00795793]
[1642595788308,0.54899985,3125.4,3124.7,0.00795793]
[1642595788536,1.761,3125.4,3124.6,2.66877012]
[1642595788737,1.761,3125.4,3124.6,0.00852635]
[1642595788935,0.80049,3125.3,3124.6,0.00852635]
[1642595789143,0.80041,3125.8,3124.2,2.66877012]
[1642595789144,0.461,3125.9,3124.8,0.01255823]
[1642595789341,0.461,3126.2,3125.0,1.6003433]
[1642595789538,0.461,3126.2,3125.1,2.66877012]
[1642595789740,0.461,3126.2,3125.6,0.01250442]
[1642595790142,0.461,3126.2,3125.7,0.0022737]
[1642595791041,0.461,3126.2,3125.8,0.8000495]
[1642595791439,0.461,3126.2,3125.9,0.00113685]
[1642595791841,0.461,3126.2,3125.6,0.00284212]
[1642595792041,0.461,3126.2,3125.5,0.00341054]
[1642595792281,1.26116,3126.2,3125.5,0.00341054]
[1642595792883,1.56116,3126.2,3125.5,0.00341054]
[1642595793081,1.56116,3126.2,3125.2,0.80532811]
[1642595793283,1.56116,3126.2,3125.3,0.00454739]
[1642595793683,0.8002,3126.1,3125.3,0.00454739]
[1642595793888,1.56116,3126.2,3125.4,0.8001296]
[1642595794087,2.56116,3126.2,3125.3,0.00454739]
[1642595794286,1.26116,3126.2,3125.5,0.00341054]
[1642595794487,1.26116,3126.2,3125.2,0.00511581]
[1642595794687,1.60044,3126.0,3125.2,0.00511581]
[1642595795090,2.86720421,3125.9,3125.2,0.80532891]
[1642595795387,0.461,3125.8,3125.3,0.00454739]
[1642595795786,0.461,3125.8,3125.2,0.00511581]
[1642595796231,0.461,3125.8,3125.4,0.8001706]
[1642595796532,2.69807138,3125.7,3125.5,0.00341054]
[1642595796732,0.00170527,3126.4,3125.5,0.00341054]
[1642595796733,6.811,3125.6,3125.5,0.00341054]
[1642595797130,6.811,3125.6,3124.9,3.056]
[1642595797131,6.811,3125.6,3125.0,0.00625266]
[1642595798135,0.461,3125.6,3125.0,0.00625266]
[1642595798934,2.69807138,3126.4,3125.1,6.55]
[1642595799140,0.16701453,3126.5,3126.2,0.01207093]
[1642595799338,0.461,3127.0,3126.2,0.01207093]
[1642595799985,2.38757967,3126.8,3125.4,1.61277974]
[1642595800189,0.80004,3126.7,3125.9,0.8000424]
[1642595800490,0.80004,3126.7,3125.7,1.600005]
[1642595800491,0.461,3126.6,3125.7,1.600005]
[1642595800692,0.461,3126.2,3125.5,1.22291054]
[1642595800888,0.461,3126.2,3125.8,0.00170527]
[1642595801094,0.461,3126.2,3125.6,0.00284212]
[1642595801095,1.26114,3126.2,3125.6,0.00284212]
[1642595801290,2.95424488,3126.1,3125.4,0.00397897]
[1642595801489,0.461,3126.0,3125.4,0.00397897]
[1642595801691,2.85978164,3125.9,3125.1,0.00568424]
[1642595801887,0.461,3126.0,3125.1,0.00568424]
[1642595801888,0.461,3125.8,3125.1,0.00568424]
[1642595802092,2.55324385,3125.7,3125.1,0.00568424]
[1642595802488,0.3,3125.5,3125.1,0.00568424]
[1642595802889,0.461,3125.8,3125.1,0.00568424]
[1642595802890,0.80029,3125.7,3125.1,0.00568424]
[1642595803091,0.461,3125.8,3125.1,0.00568424]
[1642595803290,0.461,3125.8,3125.0,2.46088201]
[1642595803529,0.461,3125.8,3125.0,0.00625266]
[1642595803737,0.461,3125.8,3125.1,0.00568424]
[1642595803934,2.45164219,3127.0,3125.4,1.09279927]
[1642595803935,0.80012,3126.4,3125.4,1.09279927]
[1642595804136,0.461,3126.2,3125.5,2.44735491]
[1642595804435,0.461,3126.2,3125.5,0.00341054]
[1642595804634,0.51432518,3126.8,3125.6,0.00284212]
[1642595804635,0.461,3126.6,3125.6,0.00284212]
[1642595804835,0.51432518,3126.8,3125.6,0.00284212]
[1642595805035,0.51432518,3126.8,3125.6,6.45076883]
[1642595805234,0.51432518,3126.8,3125.7,3.52113854]
[1642595805541,0.51432518,3126.8,3125.8,1.10157527]
[1642595805735,0.51432518,3126.8,3125.8,0.00170527]
[1642595805935,0.461,3126.6,3125.9,0.00113685]
[1642595806136,0.461,3126.6,3125.8,0.00170527]
[1642595806535,0.461,3126.6,3125.8,1.90142577]
[1642595806735,0.461,3126.6,3125.8,1.60142577]
[1642595806936,0.461,3126.6,3125.9,0.00113685]
[1642595809606,0.461,3126.6,3125.9,0.30113685]
[1642595810207,0.51432518,3126.8,3125.9,2.73823538]
[1642595810607,0.51432518,3126.8,3125.9,0.30113685]
[1642595811442,0.51432518,3126.8,3126.0,2.45224757]
[1642595811647,0.51432518,3126.8,3126.0,4.05190757]
[1642595812140,0.51432518,3126.8,3126.1,0.3]
[1642595813842,0.51432518,3126.8,3126.1,1.5996497]
[1642595815890,0.51432518,3126.8,3126.1,2.3994597]
[1642595816089,0.51432518,3126.8,3126.1,4.799056]
[1642595816293,0.51432518,3126.8,3126.1,1.5996497]
[1642595817295,0.51432518,3126.8,3126.1,2.81090318]
[1642595817694,0.51432518,3126.8,3126.2,0.3]
[1642595818295,0.51432518,3126.8,3126.2,4.04982]
[1642595818943,0.51432518,3126.8,3126.2,6.50188786]
[1642595819141,0.51432518,3126.8,3126.2,9.22277721]
[1642595819344,0.51432518,3126.8,3126.2,6.50188786]
[1642595819744,0.51432518,3126.8,3126.2,9.22278742]
[1642595820347,0.51432518,3126.8,3126.3,6.55]
[1642595820546,0.51432518,3126.8,3126.4,8.73183947]
[1642595820747,0.00227369,3126.7,3126.5,2.72077444]
[1642595820947,0.00227369,3126.7,3126.6,9.19457604]
[1642595821144,0.51432518,3126.8,3126.6,12.21535048]
[1642595821347,0.51432518,3126.8,3126.7,6.75253681]
[1642595821647,0.51716729,3126.8,3126.7,9.17617427]
[1642595822293,0.51716729,3126.8,3126.7,1.45253681]